Cogmind - Beta 9.6 @@@ ROGUE MODE // 2020.07.28 @ 22:56:44 Player: zeramoth Result: Destroyed by Heavy Explosive Trap Performance ------------- Evolutions (1) 500 Regions Visited (4) 800 Robots Destroyed (36) 180 Value Destroyed (994) 994 Prototype IDs (1) 20 Alien Tech Used (0) 0 Bonus (0) 0 TOTAL SCORE: 2494 Bonus ------- None Cogmind --------- Core Integrity 0/400 Matter 260/300 Energy 99/100 System Corruption 4% Temperature Cool (0) Movement Rolling (120) Ox2 Location -9/Storage Parts ------- > --- POWER (1) -------- (None) > --- PROPULSION (2) --- Aluminum Leg Compact Wheel > --- UTILITY (4) ------ High-capacity Storage Unit > --- WEAPON (2) ------- Flail Katana > --- INVENTORY (12) --- Improved Flight Unit Medium Storage Unit Medium Storage Unit High-capacity Storage Unit Heavy EM Pulse Gun Small Laser Particle Gun Light Assault Rifle Peak State ------------ > --- POWER ------------ Ion Engine > --- PROPULSION ------- Aluminum Leg Aluminum Leg > --- UTILITY ---------- Heat Sink Small Storage Unit High-capacity Storage Unit > --- WEAPON ----------- Beam Rifle Katana > --- INVENTORY -------- Light Ion Engine Aluminum Leg Aluminum Leg Aluminum Leg Aluminum Leg Compact Wheel Medium Storage Unit Medium Storage Unit High-capacity Storage Unit Particle Gun Light Assault Rifle [Rating: 12] Favorites ----------- Power Light Ion Engine Engine Light Ion Engine Power Core Light Nuclear Core Propulsion Aluminum Leg Leg Aluminum Leg Wheel Compact Wheel Flight Unit Improved Flight Unit Utility High-capacity Storage Unit Device Heat Sink Storage High-capacity Storage Unit Weapon Light Assault Rifle Energy Gun Small Laser Ballistic Gun Light Assault Rifle Impact Weapon Flail Slashing Weapon Katana Build | -11 -10 -10 -9 -9 ------- Run | Scr Mat Min Mat Sto Slots Evolved 2 | . . . 2 . Power . | . . . . . Propulsion . | . . . . . Utility 2 | . . . 2 . Weapon . | . . . . . Parts Attached 29 | . 6 3 9 11 Power 5 | . 1 1 2 1 Engine 4 | . 1 . 2 1 Core 1 | . . 1 . . Reactor . | . . . . . Propulsion 13 | . 1 2 4 6 Treads . | . . . . . Leg 11 | . 1 2 4 4 Wheel 1 | . . . . 1 Hover . | . . . . . Flight 1 | . . . . 1 Utility 3 | . 1 . 1 1 Device 1 | . . . 1 . Storage 2 | . 1 . . 1 Processor . | . . . . . Hackware . | . . . . . Protection . | . . . . . Artifact . | . . . . . Weapon 8 | . 3 . 2 3 Energy Gun 3 | . . . 1 2 Energy Cannon . | . . . . . Ballistic Gun 3 | . 3 . . . Ballistic Cannon . | . . . . . Launcher . | . . . . . Special Weapon . | . . . . . Impact Weapon 1 | . . . . 1 Slashing Weapon 1 | . . . 1 . Piercing Weapon . | . . . . . Special Melee Weapon . | . . . . . Unidentified Prototypes 1 | . . . . 1 Parts Lost 18 | . 3 1 4 10 Power 4 | . 1 . 1 2 Propulsion 7 | . . 1 1 5 Utility 2 | . . . . 2 Weapon 5 | . 2 . 2 1 Highest Loss Streak 6 | . 2 1 3 6 Average Slot Usage (%) 85 | . 98 100 80 72 Engine 9 | . 13 11 6 9 Core 1 | . . 2 4 . Leg 23 | . 28 28 21 19 Device 3 | . . . 5 6 Storage 23 | . 27 28 22 19 Energy Gun 3 | . 6 . . 4 Ballistic Gun 13 | . 21 28 12 . Slashing Weapon 5 | . . . 6 11 Naked Turns . | . . . . . Heaviest Build 71 | 9 42 44 46 71 Greatest Support 20 | 20 20 20 20 20 Greatest Overweight (x) 6 | . 2 2 4 6 Average Overweight (x) 2 | . 1 2 2 2 Largest Inventory Capacity 20 | . 14 14 14 20 Average Capacity 14 | . 13 14 14 14 Most Carried 14 | . 11 12 14 12 Average Carried 10 | . 8 11 13 9 Final Capacity 14 | 6 14 14 14 12 Final Carried 12 | 6 11 12 12 8 Class Distribution -------------------- 50% | Scavenger-Mutant 49% | Mutant Dominant Class ---------------- Mutant | -10/Materials Mutant | -10/Mines Scavenger-Mutant | -9/Materials Scavenger-Mutant | -9/Storage Resources | -11 -10 -10 -9 -9 ----------- Run | Scr Mat Min Mat Sto Matter Collected 594 | 198 114 49 167 66 Remotely . | . . . . . Salvage Created 1229 | . 302 88 450 389 Parts 75 | . 21 4 29 21 Haulers Intercepted . | . . . . . Recyclers Shooed 2 | . . . 1 1 Parts Field Recycled . | . . . . . Retrieved Matter . | . . . . . Parts Self-Destructed . | . . . . . Prevented . | . . . . . Kills | -11 -10 -10 -9 -9 ------- Run | Scr Mat Min Mat Sto Combat Hostiles Destroyed 34 | . 9 2 12 11 Melee 18 | . . . 7 11 Guns 16 | . 9 2 5 . Classes Destroyed 6 | . 4 . 2 . Recycler 1 | . 1 . . . Operator 1 | . 1 . . . Swarmer 13 | . 6 . 3 4 Grunt 14 | . 3 2 5 4 Duelist 1 | . . . 1 . Sentry 6 | . . . 3 3 Best Kill Streak 4 | . 3 2 4 4 Combat Bots Only 4 | . 3 2 4 4 Max Kills in Single Turn 2 | . 2 1 1 1 Gunslinging . | . . . . . Exploded . | . . . . . Melee 1 | . . . 1 1 Uniques/NPCs Destroyed . | . . . . . Combat | -11 -10 -10 -9 -9 -------- Run | Scr Mat Min Mat Sto Damage Taken 2322 | . 546 108 678 990 Core 544 | . 86 12 177 269 Absorbed by Shields . | . . . . . Core Remaining (%) 80 | 100 . 60 . . Volleys Fired 62 | . 34 6 22 . Largest 2 | . 2 2 2 . Hottest 85 | . 60 40 85 . Shots Fired 122 | . 67 12 43 . Gun 122 | . 67 12 43 . Cannon . | . . . . . Launcher . | . . . . . Special . | . . . . . Kinetic 100 | . 50 12 38 . Thermal 22 | . 17 . 5 . Explosive . | . . . . . Electromagnetic . | . . . . . Robot Hit Streak 16 | . 16 7 5 . Robot Miss Streak 5 | . 5 1 2 . Penetration Max . | . . . . . Secondary Targets 1 | . 1 . . . Max Gunslinging Chain 1 | . 1 . . . Shots Hit Robots 125 | . 49 11 39 26 Core Hits 55 | . 21 6 17 11 Critical Hits 2 | . . . 1 1 Critical Kills 1 | . . . . 1 Critical Parts Destroyed 1 | . . . 1 . Melee Attacks 56 | . . . 24 32 Impact 1 | . . . . 1 Slashing 55 | . . . 24 31 Piercing . | . . . . . Sneak Attacks 1 | . . . . 1 Combat Hostiles . | . . . . . Follow-up Attacks 1 | . . . . 1 Damage Inflicted 2105 | . 431 102 716 856 Guns 821 | . 431 102 288 . Cannons . | . . . . . Explosions . | . . . . . Melee 1284 | . . . 428 856 Ramming . | . . . . . Kinetic 623 | . 300 102 221 . Thermal 198 | . 131 . 67 . Explosive . | . . . . . Electromagnetic . | . . . . . Impact 11 | . . . . 11 Slashing 1273 | . . . 428 845 Piercing . | . . . . . Highest Corruption 4 | . . . . 4 Average Corruption 3 | . . . . 3 Corruption Purged . | . . . . . Effects 12 | . . . . 12 Message Errors 4 | . . . . 4 Matter Fused 2 | . . . . 2 Heat Flow Errors 3 | . . . . 3 Energy Discharges 1 | . . . . 1 Data Loss (minor) 1 | . . . . 1 Targeting Errors 1 | . . . . 1 Overload Shots . | . . . . . Overflow Damage 100 | . . . 26 74 Projectiles . | . . . . . Explosions . | . . . . . Melee 100 | . . . 26 74 Knockbacks . | . . . . . Impact . | . . . . . Kinetic . | . . . . . Secondary . | . . . . . Self-Inflicted Damage . | . . . . . Shots . | . . . . . Rammed . | . . . . . Targets Rammed . | . . . . . Kicked . | . . . . . Crushed . | . . . . . Highest Temperature 213 | . 64 9 114 213 Average Temperature 37 | . 22 8 35 105 Received Heat Transfer 774 | . 129 60 216 369 Siege Activations . | . . . . . Robots Corrupted . | . . . . . Combat Hostiles . | . . . . . Parts Fried . | . . . . . Impact Corruptions . | . . . . . Robots Melted . | . . . . . Combat Hostiles . | . . . . . Parts Melted 1 | . 1 . . . Heat Transferred 448 | . 300 . 148 . Parts Sabotaged . | . . . . . Parts Stolen . | . . . . . Parts Stripped . | . . . . . Power Chain Reactions . | . . . . . Missiles Intercepted . | . . . . . Alert | -11 -10 -10 -9 -9 ------- Run | Scr Mat Min Mat Sto Peak Influence 292 | . 215 50 234 292 Average Influence 98 | . 49 17 128 143 Maximum Alert Level 1 | . 1 . 1 1 Low Security (%) 85 | . 96 100 74 80 Level 1 14 | . 3 . 25 19 Level 2 . | . . . . . Level 3 . | . . . . . Level 4 . | . . . . . Level 5 . | . . . . . High Security . | . . . . . Max Security . | . . . . . Squads Dispatched 6 | . 2 . 3 1 Investigation . | . . . . . Extermination . | . . . . . Reinforcement 6 | . 2 . 3 1 Assault . | . . . . . Garrison . | . . . . . Intercept . | . . . . . Construction Impeded . | . . . . . Haulers Reinforced . | . . . . . Stealth | -11 -10 -10 -9 -9 --------- Run | Scr Mat Min Mat Sto Distress Signals 2 | . . . 2 . Communications Jammed . | . . . . . Distress Signals . | . . . . . Times Spotted 50 | . 11 2 23 14 Peak Tracking Total 6 | . 6 2 5 4 Tactical Retreats 6 | . . . 5 1 Traps | -11 -10 -10 -9 -9 ------- Run | Scr Mat Min Mat Sto Traps Triggered 4 | . . . . 4 Indirectly . | . . . . . Trap Hack Attempts . | . . . . . Triggered . | . . . . . Disarmed . | . . . . . Reprogrammed . | . . . . . Reused . | . . . . . Traps Extracted . | . . . . . Installed . | . . . . . Triggered . | . . . . . Machines | -11 -10 -10 -9 -9 ---------- Run | Scr Mat Min Mat Sto Machines Disabled 1 | . . . . 1 Max in Single Turn 1 | . . . . 1 Machines Sabotaged . | . . . . . Garrisons Compromised . | . . . . . Overloaded Fab Kills . | . . . . . Fab Network Shutdowns . | . . . . . Hacking | -11 -10 -10 -9 -9 --------- Run | Scr Mat Min Mat Sto Machines Accessed 1 | . 1 . . . Terminals 1 | . 1 . . . Fabricators . | . . . . . Repair Stations . | . . . . . Recycling Units . | . . . . . Scanalyzers . | . . . . . Garrison Access . | . . . . . Total Hacks 1 | . 1 . . . Successful 1 | . 1 . . . Failed . | . . . . . Catastrophic . | . . . . . Database Lockouts . | . . . . . Manual . | . . . . . Terminals 1 | . 1 . . . Fabricators . | . . . . . Repair Stations . | . . . . . Recycling Units . | . . . . . Scanalyzers . | . . . . . Garrison Access . | . . . . . Terminal Hacks 1 | . 1 . . . Locate Traps 1 | . 1 . . . Fabricator Hacks . | . . . . . Repair Station Hacks . | . . . . . Recycling Unit Hacks . | . . . . . Scanalyzer . | . . . . . Garrison Access Hacks . | . . . . . Unauthorized Hacks . | . . . . . Terminals . | . . . . . Fabricators . | . . . . . Repair Stations . | . . . . . Recycling Units . | . . . . . Scanalyzers . | . . . . . Garrison Access . | . . . . . Data Cores Recovered . | . . . . . Used . | . . . . . Hacking Detections . | . . . . . Full Trace Events . | . . . . . Feedback Events . | . . . . . Feedback Blocked . | . . . . . Robot Schematics Acquired . | . . . . . Robots Built . | . . . . . Matter . | . . . . . Time . | . . . . . Total Robot Build Rating . | . . . . . Part Schematics Acquired . | . . . . . Parts Built . | . . . . . Matter . | . . . . . Time . | . . . . . Total Part Build Rating . | . . . . . Parts Repaired . | . . . . . Time . | . . . . . Parts Recycled . | . . . . . Recycled Matter . | . . . . . Retrieved Matter . | . . . . . Retrieved Components . | . . . . . Parts Scanalyzed . | . . . . . Part Schematics Acquired . | . . . . . Parts Damaged . | . . . . . Bothacking | -11 -10 -10 -9 -9 ------------ Run | Scr Mat Min Mat Sto Used RIF Installer . | . . . . . Robots Hacked . | . . . . . Non-combat . | . . . . . Combat . | . . . . . Robot Hacks Applied . | . . . . . Relay Couplers Released . | . . . . . Robots Rewired . | . . . . . Allies Hacked . | . . . . . Hacks Repelled . | . . . . . Allies | -11 -10 -10 -9 -9 -------- Run | Scr Mat Min Mat Sto Total Allies . | . . . . . Largest Group . | . . . . . Highest-Rated Group . | . . . . . Highest-Rated Ally . | . . . . . Total Orders . | . . . . . Ally Attacks . | . . . . . Total Damage . | . . . . . Kills . | . . . . . Allies Corrupted . | . . . . . Allies Melted . | . . . . . Intel | -11 -10 -10 -9 -9 ------- Run | Scr Mat Min Mat Sto Robot Analysis Total . | . . . . . Derelict Logs Recovered . | . . . . . Drone Launches . | . . . . . Drone Recoveries . | . . . . . Exploration | -11 -10 -10 -9 -9 ------------- Run | Scr Mat Min Mat Sto Turns Passed 1793 | . 617 108 574 494 Spaces Moved 687 | 1 270 34 192 190 Core . | . . . . . Treads . | . . . . . Legs 660 | 1 270 34 192 163 Wheels 27 | . . . . 27 Hover . | . . . . . Flight . | . . . . . Fastest Speed 120 | 120 120 180 150 120 Average Speed 177 | 120 173 180 182 177 Slowest Speed 300 | 120 180 180 240 300 Overloaded Moves . | . . . . . Propulsion Burnouts . | . . . . . Robots Hopped . | . . . . . Cave-ins Triggered . | . . . . . Exploration Rate (%) 23 | 1 46 15 21 32 Regions Visited 4 Branch Regions 2 Pre-discovered Areas . | . . . . . Known Exits Taken . | . . . . . Unknown Exits Taken 4 | 1 1 1 1 . Scrap Searched . | . . . . . Spaces Dug . | . . . . . Terrain Destroyed . | . . . . . Melee . | . . . . . Projectile . | . . . . . AOE . | . . . . . Actions | -11 -10 -10 -9 -9 --------- Run | Scr Mat Min Mat Sto Total 1069 | . 360 70 339 300 Wait 218 | . 39 27 87 65 Move 683 | . 269 33 191 190 Hop . | . . . . . Pick Up 12 | . 8 . 3 1 Fast Attach 10 | . 3 1 3 3 Attach 12 | . 1 1 3 7 Detach 3 | . . 1 . 2 Swap 7 | . 2 1 3 1 Drop 7 | . 4 . 3 . Fire 62 | . 34 6 22 . Melee 55 | . . . 24 31 Ram . | . . . . . Kick . | . . . . . Crush . | . . . . . Escape Stasis . | . . . . . Rewire . | . . . . . Trap . | . . . . . Miscellaneous . | . . . . . Route ------- -11/Scrapyard -10/Materials (discovered 2 exits: [*Mat] / [*Min]) -10/Mines -9/Materials -9/Storage History --------- Turn | Location | Event 1 | -11/Scrapyard | Discovered new exit (range 0) 1 | -11/Scrapyard | Entered Materials 228 | -10/Materials | Discovered new exit (range 16) 340 | -10/Materials | Build established: Mutant 446 | -10/Materials | Discovered new exit (range 15) 618 | -10/Materials | Entered Mines 644 | -10/Mines | Discovered new exit (range 11) 726 | -10/Mines | Entered Materials 726 | -9/Materials | Evolved 2 slots: Utility x2 1264 | -9/Materials | Build established: Scavenger-Mutant 1270 | -9/Materials | Lost 3 parts (1p1n1w) 1282 | -9/Materials | Discovered new exit (range 8) 1300 | -9/Materials | Entered Storage 1428 | -9/Storage | Core integrity fell below 50% 1622 | -9/Storage | Core integrity fell below 20% 1674 | -9/Storage | Lost 6 parts (1p3n2u) 1794 | -9/Storage | Destroyed by Heavy Explosive Trap Last Messages --------------- 01685_ R-06 Scavenger collects Heat Sink. 01697_ R-06 Scavenger collects Imp. Heat Sink. 01700_ R-06 Scavenger collects Lgt. Nuclear Core. 01727_ Storage Shell breached. 01734_ K-01 Serf collects debris. 01737_ Acquired Flail. 01737_ K-01 Serf collects debris. 01740_ Hvy. Assault Rifle severed. 01740_ Flail follow-up attack on Y-45 Defender. 01744_ Aluminum Leg destroyed. 01746_ Lgt. Ion Engine destroyed. 01748_ Y-45 Defender destroyed. 01751_ YL:I4KYIE%TA=REB8%Y2/ 01762_ Acquired Hvy. EM Pulse Gun. 01763_ R-06 Scavenger collects Hvy. Assault Rifle. 01794_ Triggered Heavy Explosive Trap. 01794_ An explosion rips through the floor. Map ----- +----------------------------------------------------+ | ???????????????????? | | ???????????????????? | | ???????????????????????????#########% %## | | ???????????????????????????????????# %#? | | ???????????????????????????????????# %#? | | ????????????????#################### #? | | ??????????????? % #? | | ??????????????? #? | | ??????????????? # | | ???????????????????################# # | | ??????????????????????????????????#T + | | ??????????????????????????????????## # | | ???????????????????????????????????# # | | ???????????????????????????????????# #? | | ???????????????????????????????????# #? | | ???????????????????????##########??# ## | | ???????????????????????# #### | | ???????????????????????# / | | ???????????+########+### """" #### | | ???????????? # "!!"" #??# ## | | ?????????????? + "!=""" #??# #? | | ???????????????? # """ " #??# #? | | ?????????????###### # ""=! %#??# #? | | ?????????????#]] # # """" #??# #? | | ?????????????#]] + + #??# #? | | ?????????????#]]@ ###############??# #? | | ?????????????######?????????????????####? | | ????????????????????????????????????????? | | ????????????????????????????????????????? | | ????????????????????????????????????????? | | ????????????????????????????????????????? | | ????????????????????????????????????????? | | ????????????????????????????????????????? | | ????????????????????????????????????????? | | ????????????????????????????????????????? | | ????????????????????????????????????????? | | ????????????????????????????????????????? | | ????????????????????????????????????????? | | ????????????????????????????????????????? | | ????????????????????????????????????????? | | ????????????????????????????????????????? | | ????????????????????????????????????????? | | ????????????????????????????????????????? | | ????????????????????????????????????????? | | ????????????????????????????????????????? | | ????????????????????????????????????????? | | ????????????????????????????????????????? | | ????????????????????????????????????????? | | ????????????????????????????????????????? | | ????????????????????????????????????????? | +----------------------------------------------------+ Best States ------------- Heat Dissipation 38 Energy Generation 14 Energy Capacity 250 Matter Stores 300 Matter Capacity 300 Sight Range 16 Terrain Scan Density 10 Evasion (%) 40 Item Schematics ----------------- None Robot Schematics ------------------ None Fabricated ------------ Nothing Alien Tech Used ----------------- None Achievements -------------- None Challenges ------------ None Game ------ Seed DroneNovaLauncher Manual? 0 Play Time 00:15:47 Cumulative 31.1 hours Start 2020.07.28 @ 22:44:45 End 2020.07.28 @ 22:56:44 Sessions 1 Manual Loads 0 Difficulty Rogue Special Mode None Game No. 75 Rogue 74 Adventurer 0 Explorer 1 Win Type - Total 0 Types 0/0/0/0/0/0/0 Lore% 23 Gallery% 39 Achievement% 27 Wizard Run 0 Options --------- ASCII 1 Keyboard 1 Movement Vi Keybinds 0 Fullscreen 2 Font 24/Proggy Map View 76x50 Tactical HUD 1 Map Filters NONE Filters NONE Steam 1 RUN: ac22095a-e0e8-4677-a390-f695f69ad2cc